Cogmind - Beta 13 --- EXPLORER MODE // 2024.04.10 @ 14:58:11 Player: lillie Result: Self-destructed Performance ------------- Evolutions (5) 2500 Regions Visited (10) 2000 Robots Destroyed (138) 690 Value Destroyed (5439) 5439 Prototype IDs (5) 100 Alien Tech Used (0) 0 Bonus (1277) 1277 TOTAL SCORE: 12006 Bonus ------- High Alert Combat Kills 277 Entered Garrisons 200 Entered DSFs 500 Acquired ECA 300 Cogmind --------- Core Integrity 828/1000 Matter 60/300 Energy 150/150 System Corruption 9% Temperature Cool (0) Movement Core (650) Ox12 Location -5/Factory Parts ------- > --- POWER (3) -------- Fusion Compressor Micro Fission Core > --- PROPULSION (4) --- Gravmag System > --- UTILITY (7) ------ Advanced Heat Sink Core Shielding > --- WEAPON (4) ------- Improved Heavy Machine Gun Enhanced Gauss Cannon Heavy Gauss Cannon > --- INVENTORY (5) ---- Improved Heat Sink Improved Coolant Injector Encrypted Comm Array Peak State ------------ > --- POWER ------------ Light Fission Core Fusion Compressor Light Antimatter Reactor > --- PROPULSION ------- Improved Medium Treads Improved Medium Treads Heavy Treads > --- UTILITY ---------- Improved Heat Sink Advanced Heat Sink Makeshift Transmission Jammer Improved Propulsion Shielding Layered Heavy Armor Plating Advanced Shield Generator > --- WEAPON ----------- Particle Gun Improved Heavy Machine Gun Heavy Gauss Cannon Improved Plasma Cutter > --- INVENTORY -------- Light Nuclear Core Improved Heat Sink Encrypted Comm Array Core Shielding Heavy Gauss Cannon [Rating: 95] Favorites ----------- Power Light Nuclear Core Engine Light Ion Engine Power Core Light Nuclear Core Reactor Light Antimatter Reactor Propulsion Improved Medium Treads Treads Improved Medium Treads Leg Carbon-fiber Leg Wheel Compact Wheel Hover Unit Gravmag System Flight Unit VTOL Module Utility Improved Heat Sink Device Improved Heat Sink Storage High-capacity Battery Processor Targeting Computer Protection Layered Heavy Armor Plating Weapon Particle Gun Energy Gun Particle Gun Energy Cannon Beam Cannon Ballistic Gun Improved Heavy Machine Gun Ballistic Cannon Heavy Gauss Cannon Launcher Mini Grenade Launcher Special Weapon Improved Plasma Cutter Impact Weapon Maul Build | -11 -10 -9 -8 -7 -7 -7 -6 -6 -6 -5 ------- Run | Yrd Mat Mat Mat Fac DSF Gar Fac Low Low Fac Slots Evolved 11 | . 1 2 2 2 . . 2 . . 2 Power 2 | . . 1 . . . . 1 . . . Propulsion 2 | . . 1 . . . . 1 . . . Utility 5 | . 1 . 2 1 . . . . . 1 Weapon 2 | . . . . 1 . . . . . 1 Parts Attached 141 | 9 10 16 19 4 4 39 17 5 5 13 Power 33 | 2 2 4 7 . 2 12 1 1 . 2 Engine 9 | 2 2 3 2 . . . . . . . Core 23 | . . 1 5 . 2 11 1 1 . 2 Reactor 1 | . . . . . . 1 . . . . Propulsion 46 | 2 . 7 6 2 . 12 10 1 1 5 Treads 5 | . . . . . . . 3 . 1 1 Leg 20 | . . . 5 2 . 10 2 1 . . Wheel 11 | 2 . 7 1 . . . 1 . . . Hover 6 | . . . . . . . 2 . . 4 Flight 4 | . . . . . . 2 2 . . . Utility 32 | 3 6 . 4 1 . 7 4 3 1 3 Device 16 | 1 1 . 2 . . 4 3 3 1 1 Storage 4 | . 2 . . . . 1 1 . . . Processor 1 | 1 . . . . . . . . . . Hackware . | . . . . . . . . . . . Protection 11 | 1 3 . 2 1 . 2 . . . 2 Artifact . | . . . . . . . . . . . Weapon 30 | 2 2 5 2 1 2 8 2 . 3 3 Energy Gun 10 | 1 . 1 1 . 1 3 2 . 1 . Energy Cannon 7 | . 2 2 . . . 3 . . . . Ballistic Gun 4 | 1 . . . . . 2 . . . 1 Ballistic Cannon 3 | . . . . . . . . . 2 1 Launcher 4 | . . 2 1 1 . . . . . . Special Weapon 1 | . . . . . . . . . . 1 Impact Weapon 1 | . . . . . 1 . . . . . Slashing Weapon . | . . . . . . . . . . . Piercing Weapon . | . . . . . . . . . . . Special Melee Weapon . | . . . . . . . . . . . Unidentified Prototypes 5 | . . 2 1 . . . 1 . . 1 Corrupted Parts 2 | . . . . . . 1 . 1 . . System Corruption 6 | . . . . . . 3 . 3 . . Parts Lost 45 | . . 4 3 . 1 26 1 . . 10 Power 12 | . . 2 2 . . 6 . . . 2 Propulsion 15 | . . 2 1 . 1 7 1 . . 3 Utility 10 | . . . . . . 6 . . . 4 Weapon 8 | . . . . . . 7 . . . 1 Highest Loss Streak 14 | . . 3 2 . 1 14 1 . . 8 To Critical Strikes . | . . . . . . . . . . . Average Slot Usage (%) 86 | . 87 91 94 100 100 90 80 81 82 81 Engine 2 | . 12 16 1 . . . . . . . Core 8 | . . 1 13 14 14 11 6 9 12 10 Reactor 3 | . . . . . . 1 6 6 6 4 Treads 3 | . . . . . . . 6 6 8 9 Leg 7 | . . . 16 21 21 16 8 3 2 . Wheel 5 | . 16 23 7 . . . . 6 3 . Device 17 | . 12 10 15 14 14 17 14 22 25 21 Storage 8 | . 8 20 16 14 14 12 9 2 . . Protection 7 | . 12 . 6 14 14 9 6 6 6 7 Energy Gun 8 | . . . 3 7 7 6 16 18 6 5 Energy Cannon 4 | . 23 15 . . . 7 . . . . Ballistic Cannon 2 | . . . . . . . . . 11 9 Launcher 2 | . . 4 11 14 7 . . . . . Naked Turns . | . . . . . . . . . . . Heaviest Build 106 | 10 18 21 23 24 32 61 106 98 85 89 Greatest Support 130 | 20 20 48 57 57 57 65 80 30 60 130 Greatest Overweight (x) 25 | . 4 . 1 . . 9 25 6 2 15 Average Overweight (x) . | . . . . . . . 2 4 1 . Largest Inventory Capacity 20 | 5 5 5 5 5 5 5 20 20 5 5 Average Capacity 7 | 5 5 5 5 5 5 5 18 9 5 5 Most Carried 9 | 5 5 5 5 5 5 5 9 9 5 5 Average Carried 4 | 3 3 4 4 3 4 3 6 6 2 3 Final Capacity 20 | 5 5 5 5 5 5 5 20 5 5 5 Final Carried 8 | 2 5 4 5 5 4 5 8 5 4 3 Class Distribution -------------------- 39% | Hacker-Tank 37% | Hacker-Mutant 16% | Scavenger-Tank 4% | Scavenger-Mutant Dominant Class ---------------- Hacker-Mutant | -10/Materials Hacker-Mutant | -9/Materials Hacker-Mutant | -8/Materials Hacker-Bomber | -7/Factory Hacker-Mutant | -7/DSF Scavenger-Tank | -7/Garrison Scavenger-Tank | -6/Factory Hacker-Tank | -6/Lower Caves Hacker-Tank | -6/Lower Caves Hacker-Tank | -5/Factory Resources | -11 -10 -9 -8 -7 -7 -7 -6 -6 -6 -5 ----------- Run | Yrd Mat Mat Mat Fac DSF Gar Fac Low Low Fac Matter Collected 2793 | 302 138 207 736 . 47 583 221 104 83 372 Remotely . | . . . . . . . . . . . Salvage Created 4609 | 75 258 766 689 . 51 1315 840 146 . 469 Parts 238 | 6 9 63 50 . 1 49 32 5 . 23 Haulers Intercepted 2 | . . . 2 . . . . . . . Recyclers Shooed 4 | . . 1 2 . . . . . . 1 Parts Field Recycled . | . . . . . . . . . . . Retrieved Matter . | . . . . . . . . . . . Parts Self-Destructed . | . . . . . . . . . . . Prevented . | . . . . . . . . . . . Kills | -11 -10 -9 -8 -7 -7 -7 -6 -6 -6 -5 ------- Run | Yrd Mat Mat Mat Fac DSF Gar Fac Low Low Fac Combat Hostiles Destroyed 105 | 1 4 21 23 . 1 26 15 4 . 10 Guns 37 | 1 . . 1 . 1 11 15 4 . 4 Cannons 26 | . 4 9 . . . 7 . . . 6 AOE 36 | . . 12 22 . . 2 . . . . Classes Destroyed 17 | 3 1 5 4 . . 1 2 . . 1 Worker 5 | 1 . 1 1 . . . . . . 2 Builder 6 | . . 3 2 . . . . . . 1 Tunneler 2 | 1 1 . . . . . . . . . Hauler 2 | . . . 2 . . . . . . . Recycler 1 | . . . . . . . 1 . . . Mechanic 1 | . . 1 . . . . . . . . Operator 1 | . . 1 . . . . . . . . Drone 1 | . . . 1 . . . . . . . Watcher 16 | . 2 5 4 . . 2 1 . . 2 Swarmer 14 | . . 2 2 . . 5 3 2 . . Grunt 57 | 1 4 15 12 . 1 12 8 1 . 3 Brawler 1 | . . . . . . 1 . . . . Duelist 4 | . . . 1 . . 2 . 1 . . Sentry 17 | . . 4 5 . . 6 1 . . 1 Hunter 3 | . . . 2 . . . . . . 1 Programmer 7 | . . . . . . . 3 . . 4 Behemoth 1 | . . . . . . . . . . 1 Best Kill Streak 13 | 2 2 13 6 . 1 8 6 2 . 3 Combat Bots Only 9 | 1 2 9 5 . 1 8 6 2 . 2 Max Kills in Single Turn 3 | 1 1 3 3 . 1 1 2 1 . 1 Gunslinging 1 | . . . . . . . 1 . . . Exploded 3 | . . 2 3 . . 1 . . . . Melee . | . . . . . . . . . . . Uniques/NPCs Destroyed . | . . . . . . . . . . . Combat | -11 -10 -9 -8 -7 -7 -7 -6 -6 -6 -5 -------- Run | Yrd Mat Mat Mat Fac DSF Gar Fac Low Low Fac Hostile Shots Fired 1334 | 13 21 74 138 . 18 582 219 18 . 251 Missed 419 | 5 4 17 43 . 8 186 75 3 . 78 Damage Taken 7316 | 56 134 498 1012 . 235 2780 867 116 . 1618 Core 1196 | 8 13 68 326 . . 545 52 12 . 172 Absorbed by Shields 1360 | . . . . . . 46 625 100 . 589 Redirected to Shielding 299 | . . . 44 . . 159 . . . 96 Ignored by Resistances 5312 | 33 82 306 606 . 132 1825 898 125 . 1305 Regen/Repaired (Parts) 133 | . 26 . 70 . . . 37 . . . Core Remaining (%) 70 | 96 91 83 40 . . 22 . . 92 . Volleys Fired 304 | 10 22 49 45 1 8 78 31 8 . 52 Largest 4 | 2 2 2 2 1 2 3 3 3 . 4 Hottest 225 | 60 120 128 61 30 85 225 205 205 . 198 Shots Fired 600 | 20 42 98 52 1 10 139 95 25 . 118 Gun 298 | 20 . . 3 . 8 81 94 25 . 67 Cannon 226 | . 42 76 . . . 56 1 . . 51 Launcher 76 | . . 22 49 1 2 2 . . . . Special . | . . . . . . . . . . . Kinetic 105 | 10 . . . . . 21 1 . . 73 Thermal 367 | 10 42 76 3 . 1 109 64 17 . 45 Explosive 76 | . . 22 49 1 2 2 . . . . Electromagnetic 52 | . . . . . 7 7 30 8 . . Robot Hit Streak 55 | 9 7 15 9 . 6 37 40 55 . 16 Robot Miss Streak 7 | 1 2 2 1 . 1 7 1 1 . 3 Penetration Max 1 | . . . . . . . . . . 1 Secondary Targets 10 | . . . . . . 2 6 1 . 1 Max Gunslinging Chain 1 | . . . . . . 1 1 1 . 1 Shots Hit Robots 449 | 16 26 69 33 . 7 107 76 20 . 95 Core Hits 285 | 5 9 45 68 . 4 64 47 11 . 32 Critical Kills 2 | . . . . . . 2 . . . . Critical Parts Destroyed . | . . . . . . . . . . . Critical Strikes 22 | . . . . . . 8 1 . . 13 Burn 6 | . . . . . . 4 1 . . 1 Meltdown 2 | . . . . . . 2 . . . . Blast 12 | . . . . . . . . . . 12 Corrupt 2 | . . . . . . 2 . . . . Melee Attacks 4 | . . . . . . 4 . . . . Impact 4 | . . . . . . 4 . . . . Slashing . | . . . . . . . . . . . Piercing . | . . . . . . . . . . . Sneak Attacks . | . . . . . . . . . . . Combat Hostiles . | . . . . . . . . . . . Follow-up Attacks . | . . . . . . . . . . . Damage Inflicted 13239 | 205 480 2457 2826 . 137 2411 1705 446 . 2572 Guns 4505 | 202 . . 51 . 112 1021 1681 446 . 992 Cannons 4174 | . 476 1002 . . . 1092 24 . . 1580 Explosions 4449 | . . 1455 2761 . 25 208 . . . . Melee 90 | . . . . . . 90 . . . . Ramming 21 | 3 4 . 14 . . . . . . . Kinetic 2471 | 105 . . . . . 327 . . . 2039 Thermal 5262 | 97 476 1002 51 . 17 1701 1079 306 . 533 Explosive 4449 | . . 1455 2761 . 25 208 . . . . Electromagnetic 946 | . . . . . 95 85 626 140 . . Impact 90 | . . . . . . 90 . . . . Slashing . | . . . . . . . . . . . Piercing . | . . . . . . . . . . . Highest Corruption 9 | . . . . . . 3 4 7 7 9 Average Corruption 4 | . . . . . . 3 3 5 7 6 Corruption Purged . | . . . . . . . . . . . Corruption Blocked . | . . . . . . . . . . . Effects 109 | . . . . . . 24 21 28 30 6 Message Errors 35 | . . . . . . 9 5 11 9 1 Matter Fused 22 | . . . . . . 4 5 8 5 . Heat Flow Errors 7 | . . . . . . . 1 3 2 1 Energy Discharges 13 | . . . . . . 3 3 2 5 . Parts Rejected 1 | . . . . . . . . . . 1 Parts Fused 2 | . . . . . . 1 . . . 1 Data Loss (minor) 13 | . . . . . . 2 4 2 5 . Data Loss (major) 5 | . . . . . . . 1 1 3 . Misfires 4 | . . . . . . 1 2 1 . . Alerts 4 | . . . . . . 2 . . 1 1 Weapon Failures 3 | . . . . . . 2 . . . 1 Overload Shots . | . . . . . . . . . . . Overflow Damage 117 | . . 32 21 . . 24 . . . 40 Projectiles 53 | . . . . . . 13 . . . 40 Explosions 53 | . . 32 21 . . . . . . . Melee 11 | . . . . . . 11 . . . . Knockbacks 23 | . . . . . . 2 . . . 21 Impact 2 | . . . . . . 2 . . . . Kinetic 19 | . . . . . . . . . . 19 Secondary 2 | . . . . . . . . . . 2 Self-Inflicted Damage 135 | 1 2 31 81 . . 20 . . . . Shots 7 | . . 1 5 . . 1 . . . . Rammed 2 | 1 1 . . . . . . . . . Targets Rammed 3 | 1 1 . 1 . . . . . . . Kicked 1 | . . . 1 . . . . . . . Crushed . | . . . . . . . . . . . Highest Temperature 539 | 48 539 282 24 . . 199 380 174 231 401 Average Temperature 110 | 29 170 94 8 . . 90 148 79 101 83 Received Heat Transfer 3271 | 48 120 369 486 . 27 1462 395 42 . 322 Effects 14 | . 8 . . . . . 2 . . 4 Shutdowns 5 | . 2 . . . . . 1 . . 2 Energy Bleed 1 | . . . . . . . 1 . . . Interference 4 | . 4 . . . . . . . . . Matter Decay 1 | . . . . . . . . . . 1 Short Circuit 2 | . 1 . . . . . . . . 1 Damage (minor) 1 | . 1 . . . . . . . . . Siege Activations . | . . . . . . . . . . . Robots Corrupted 1 | . . . . . . 1 . . . . Combat Hostiles 1 | . . . . . . 1 . . . . Parts Fried 5 | . . . . . . 3 1 1 . . Impact Corruptions 2 | . . . . . . 2 . . . . Robots Melted 4 | . . . . . . 4 . . . . Combat Hostiles 4 | . . . . . . 4 . . . . Parts Melted 23 | . 2 5 . . . 11 4 1 . . Heat Transferred 11763 | 225 999 2035 111 . 37 3926 2463 709 . 1258 Parts Sabotaged . | . . . . . . . . . . . Parts Stolen . | . . . . . . . . . . . Parts Stripped . | . . . . . . . . . . . Power Chain Reactions . | . . . . . . . . . . . Alert | -11 -10 -9 -8 -7 -7 -7 -6 -6 -6 -5 ------- Run | Yrd Mat Mat Mat Fac DSF Gar Fac Low Low Fac Peak Influence 674 | 30 173 551 674 158 162 642 447 . . 187 Initial 250 | . 14 1 166 148 84 88 250 . . . Average 231 | 11 77 196 376 156 112 370 192 . . 92 Maximum Alert Level 2 | . . 2 2 . . 2 2 . . . Low Security (%) 52 | 100 100 52 13 100 100 12 58 . . 100 Level 1 27 | . . 36 44 . . 47 28 . . . Level 2 19 | . . 10 41 . . 40 13 . . . Level 3 . | . . . . . . . . . . . Level 4 . | . . . . . . . . . . . Level 5 . | . . . . . . . . . . . High Security . | . . . . . . . . . . . Max Security . | . . . . . . . . . . . Squads Dispatched 22 | . . 4 6 . 1 . 6 . . 5 Investigation 10 | . . 2 5 . . . 2 . . 1 Extermination 5 | . . . . . . . 3 . . 2 Reinforcement 7 | . . 2 1 . 1 . 1 . . 2 Assault . | . . . . . . . . . . . Garrison . | . . . . . . . . . . . Intercept . | . . . . . . . . . . . Searches Triggered . | . . . . . . . . . . . Construction Impeded 3 | . . 1 1 . . . . . . 1 Haulers Reinforced 1 | . . . . . . . . . . 1 Active Scanning Responses . | . . . . . . . . . . . Cargo Convoy Interrupts . | . . . . . . . . . . . Stealth | -11 -10 -9 -8 -7 -7 -7 -6 -6 -6 -5 --------- Run | Yrd Mat Mat Mat Fac DSF Gar Fac Low Low Fac Distress Signals 8 | . . 4 2 . . 1 . . . 1 Communications Jammed 13 | . . . . . . . . . . 13 Distress Signals 13 | . . . . . . . . . . 13 Times Spotted 156 | 1 7 35 31 . 6 34 19 4 . 19 Peak Tracking Total 8 | 1 3 5 5 . 2 8 6 4 . 4 Tactical Retreats 16 | . . 3 3 . 2 4 1 . . 3 Traps | -11 -10 -9 -8 -7 -7 -7 -6 -6 -6 -5 ------- Run | Yrd Mat Mat Mat Fac DSF Gar Fac Low Low Fac Traps Triggered 8 | . 2 . 1 . . 5 . . . . Indirectly . | . . . . . . . . . . . Trap Hack Attempts . | . . . . . . . . . . . Triggered . | . . . . . . . . . . . Disarmed . | . . . . . . . . . . . Reprogrammed . | . . . . . . . . . . . Reused . | . . . . . . . . . . . Traps Extracted . | . . . . . . . . . . . Installed . | . . . . . . . . . . . Triggered 1 | . . . . . . 1 . . . . Machines | -11 -10 -9 -8 -7 -7 -7 -6 -6 -6 -5 ---------- Run | Yrd Mat Mat Mat Fac DSF Gar Fac Low Low Fac Machines Disabled 15 | . . 1 11 . 1 1 . . . 1 Max in Single Turn 2 | . . 1 2 . 1 1 . . . 1 Garrison Access 1 | . . . 1 . . . . . . . Garrison Relay 1 | . . . . . . 1 . . . . Machines Repaired . | . . . . . . . . . . . Machines Dismantled . | . . . . . . . . . . . Machines Sabotaged . | . . . . . . . . . . . Overloaded Fab Kills . | . . . . . . . . . . . Hacking | -11 -10 -9 -8 -7 -7 -7 -6 -6 -6 -5 --------- Run | Yrd Mat Mat Mat Fac DSF Gar Fac Low Low Fac Machines Accessed 20 | . 3 2 9 1 . 1 3 . . 1 Terminals 12 | . 2 2 5 1 . 1 1 . . . Fabricators 2 | . . . . . . . 1 . . 1 Repair Stations 3 | . 1 . 1 . . . 1 . . . Recycling Units 1 | . . . 1 . . . . . . . Scanalyzers 1 | . . . 1 . . . . . . . Garrison Access 1 | . . . 1 . . . . . . . Total Hacks 67 | . 9 10 33 2 . 2 8 . . 3 Successful 45 | . 5 5 26 1 . 1 6 . . 1 Failed 22 | . 4 5 7 1 . 1 2 . . 2 Catastrophic 2 | . 1 . 1 . . . . . . . Database Lockouts . | . . . . . . . . . . . Manual 2 | . . . 2 . . . . . . . Terminals 37 | . 7 10 13 2 . 2 3 . . . Fabricators 4 | . . . . . . . 1 . . 3 Repair Stations 17 | . 2 . 11 . . . 4 . . . Recycling Units 3 | . . . 3 . . . . . . . Scanalyzers 3 | . . . 3 . . . . . . . Garrison Access 3 | . . . 3 . . . . . . . Terminal Hacks 19 | . 3 5 8 1 . 1 1 . . . Record 1 | . 1 . . . . . . . . . Open DSF 1 | . . . . 1 . . . . . . Emergency Access Points 2 | . 1 . . . . 1 . . . . Alert Level 1 | . . 1 . . . . . . . . Unreport Threat 1 | . . . 1 . . . . . . . Locate Traps 2 | . . . 2 . . . . . . . Patrol Status 1 | . . . 1 . . . . . . . Recall Investigation 1 | . . . 1 . . . . . . . Recall Extermination 1 | . . . . . . . 1 . . . Recall Reinforcements 2 | . . 1 1 . . . . . . . Recall Assault 1 | . 1 . . . . . . . . . Hauler Manifests 2 | . . 1 1 . . . . . . . Registered Prototypes 1 | . . . 1 . . . . . . . Zone Layout 2 | . . 2 . . . . . . . . Fabricator Hacks 2 | . . . . . . . 1 . . 1 Network Status 1 | . . . . . . . . . . 1 Build 1 | . . . . . . . 1 . . . Repair Station Hacks 16 | . 2 . 10 . . . 4 . . . Scan Component 9 | . 1 . 6 . . . 2 . . . Repair 6 | . 1 . 3 . . . 2 . . . Refit 1 | . . . 1 . . . . . . . Recycling Unit Hacks 3 | . . . 3 . . . . . . . Process 1 | . . . 1 . . . . . . . Retrieve Matter 2 | . . . 2 . . . . . . . Scanalyzer 3 | . . . 3 . . . . . . . Insert Component 1 | . . . 1 . . . . . . . Analyze 2 | . . . 2 . . . . . . . Garrison Access Hacks 2 | . . . 2 . . . . . . . Unlock Access 1 | . . . 1 . . . . . . . Seal Access 1 | . . . 1 . . . . . . . Unauthorized Hacks . | . . . . . . . . . . . Terminals . | . . . . . . . . . . . Fabricators . | . . . . . . . . . . . Repair Stations . | . . . . . . . . . . . Recycling Units . | . . . . . . . . . . . Scanalyzers . | . . . . . . . . . . . Garrison Access . | . . . . . . . . . . . Data Cores Recovered . | . . . . . . . . . . . Used . | . . . . . . . . . . . Hacking Detections 14 | . 2 2 7 . . . 2 . . 1 Full Trace Events 13 | . 2 2 6 . . . 2 . . 1 Feedback Events 1 | . . . . . . . . . . 1 Corruption 1 | . . . . . . . . . . 1 Feedback Blocked . | . . . . . . . . . . . Robot Schematics Acquired . | . . . . . . . . . . . Robots Built . | . . . . . . . . . . . Authchips . | . . . . . . . . . . . Time . | . . . . . . . . . . . Total Robot Build Rating . | . . . . . . . . . . . Part Schematics Acquired 1 | . . . 1 . . . . . . . Parts Built 2 | . . . . . . . 2 . . . Authchips . | . . . . . . . . . . . Time 58 | . . . . . . . 58 . . . Total Part Build Rating 14 | . . . . . . . 14 . . . Parts Repaired 6 | . 1 . 3 . . . 2 . . . Time 174 | . 26 . 96 . . . 52 . . . Parts Recycled . | . . . . . . . . . . . Recycled Matter 148 | . . . 148 . . . . . . . Retrieved Matter . | . . . . . . . . . . . Retrieved Components . | . . . . . . . . . . . Parts Scanalyzed 1 | . . . 1 . . . . . . . Part Schematics Acquired 1 | . . . 1 . . . . . . . Parts Damaged . | . . . . . . . . . . . Bothacking | -11 -10 -9 -8 -7 -7 -7 -6 -6 -6 -5 ------------ Run | Yrd Mat Mat Mat Fac DSF Gar Fac Low Low Fac Used RIF Installer . | . . . . . . . . . . . Robots Hacked . | . . . . . . . . . . . Non-combat . | . . . . . . . . . . . Combat . | . . . . . . . . . . . Robot Hacks Applied . | . . . . . . . . . . . Relay Couplers Released 5 | . . . . . . 5 . . . . Machine Destruction 5 | . . . . . . 5 . . . . Fabnet Peak Effective % . | . . . . . . . . . . . Robots Rewired . | . . . . . . . . . . . Allies Hacked . | . . . . . . . . . . . Hacks Repelled . | . . . . . . . . . . . Allies | -11 -10 -9 -8 -7 -7 -7 -6 -6 -6 -5 -------- Run | Yrd Mat Mat Mat Fac DSF Gar Fac Low Low Fac Total Allies . | . . . . . . . . . . . Largest Group . | . . . . . . . . . . . Highest-Rated Group . | . . . . . . . . . . . Highest-Rated Ally . | . . . . . . . . . . . Total Orders . | . . . . . . . . . . . Ally Attacks . | . . . . . . . . . . . Total Damage . | . . . . . . . . . . . Kills . | . . . . . . . . . . . Allies Corrupted . | . . . . . . . . . . . Allies Melted . | . . . . . . . . . . . Intel | -11 -10 -9 -8 -7 -7 -7 -6 -6 -6 -5 ------- Run | Yrd Mat Mat Mat Fac DSF Gar Fac Low Low Fac Robot Analysis Total . | . . . . . . . . . . . Derelict Logs Recovered 1 | . . . . . . . . 1 . . Drone Launches . | . . . . . . . . . . . Drone Recoveries . | . . . . . . . . . . . Exploration | -11 -10 -9 -8 -7 -7 -7 -6 -6 -6 -5 ------------- Run | Yrd Mat Mat Mat Fac DSF Gar Fac Low Low Fac Turns Passed 8057 | 135 633 650 1104 139 107 1250 1169 1139 889 842 Spaces Moved 4361 | 107 480 566 802 112 69 686 369 465 311 394 Core 123 | 28 64 . . . . 30 . . . 1 Treads 854 | . . . . . . . 163 145 311 235 Legs 1619 | . . . 633 112 69 605 168 32 . . Wheels 1537 | 79 416 566 169 . . . 19 288 . . Hover 164 | . . . . . . . 6 . . 158 Flight 64 | . . . . . . 51 13 . . . Fastest Speed 50 | 50 80 80 90 105 105 90 120 145 240 108 Average Speed 153 | 72 107 81 109 113 109 133 275 235 282 163 Slowest Speed 2065 | 80 250 100 180 116 110 500 2065 400 320 800 Overloaded Moves . | . . . . . . . . . . . Propulsion Burnouts . | . . . . . . . . . . . Robots Hopped . | . . . . . . . . . . . Cave-ins Triggered . | . . . . . . . . . . . Exploration Rate (%) 40 | 10 59 58 66 3 69 54 9 64 40 13 Regions Visited 10 Branch Regions 2 Pre-discovered Areas 1 | . . . . . . . . 1 . . Known Exits Taken 8 | 1 1 1 1 1 . . 1 1 1 . Unknown Exits Taken . | . . . . . . . . . . . Scrap Searched 13 | . . . . . . . . 2 11 . Spaces Dug 14 | . . . 14 . . . . . . . Terrain Destroyed 444 | . . 114 291 8 10 9 . . . 12 Melee . | . . . . . . . . . . . Projectile 12 | . . . . . . . . . . 12 AOE 432 | . . 114 291 8 10 9 . . . . Terrain Rammed . | . . . . . . . . . . . Walls Destroyed . | . . . . . . . . . . . Machines Disabled . | . . . . . . . . . . . Actions | -11 -10 -9 -8 -7 -7 -7 -6 -6 -6 -5 --------- Run | Yrd Mat Mat Mat Fac DSF Gar Fac Low Low Fac Total 5209 | 147 559 659 979 124 91 892 452 489 323 494 Wait 132 | . 26 . 89 . . . . 3 . 14 Move 4350 | 106 479 565 801 111 68 684 368 464 310 394 Hop . | . . . . . . . . . . . Pick Up 159 | 15 14 17 17 5 5 43 21 6 3 13 Fast Attach . | . . . . . . . . . . . Attach 100 | 9 8 10 10 4 1 30 12 3 4 9 Detach . | . . . . . . . . . . . Swap 41 | . 2 6 9 . 3 9 5 2 1 4 Drop 87 | 6 7 12 7 3 6 15 15 3 5 8 Fire 304 | 10 22 49 45 1 8 78 31 8 . 52 Melee 4 | . . . . . . 4 . . . . Ram 2 | 1 1 . . . . . . . . . Kick 1 | . . . 1 . . . . . . . Crush . | . . . . . . . . . . . Escape Stasis 29 | . . . . . . 29 . . . . Rewire . | . . . . . . . . . . . Trap . | . . . . . . . . . . . Miscellaneous . | . . . . . . . . . . . Route ------- -11/Scrapyard -10/Materials (discovered 3 exits: *Mat / *Min x2) -9/Materials (discovered 2 exits: *Mat / *Min) -8/Materials -7/Factory -7/DSF -7/Garrison (discovered 2 exits: *Fac x2) -6/Factory (discovered 2 exits: *Fac / *Low) -6/Lower Caves -6/Lower Caves -5/Factory (discovered 1 exit: Upp) History --------- Turn | Location | Event 2 | -11/Scrapyard | Met Revision 17 66 | -11/Scrapyard | Identified exit to Materials 66 | -11/Scrapyard | Discovered exit to Materials (range 8) 136 | -11/Scrapyard | Entered Materials 136 | -10/Materials | Evolved 1 slot: Utility x1 300 | -10/Materials | Build established: Hacker-Mutant 301 | -10/Materials | Identified exit to Mines 301 | -10/Materials | Discovered exit to Mines (range 15) 366 | -10/Materials | Discovered exit to Mines (range 9) 605 | -10/Materials | Repaired Wheel 756 | -10/Materials | Identified exit to Materials 756 | -10/Materials | Discovered exit to Materials (range 3) 769 | -10/Materials | Entered another Materials area 769 | -9/Materials | Evolved 2 slots: Power x1, Propulsion x1 1012 | -9/Materials | Identified exit to Mines 1012 | -9/Materials | Discovered exit to Mines (range 7) 1348 | -9/Materials | Identified exit to Materials 1348 | -9/Materials | Discovered exit to Materials (range 10) 1378 | -9/Materials | Destroyed 9 combat bots 1379 | -9/Materials | Lost 3 parts (2p1n) 1419 | -9/Materials | Entered another Materials area 1419 | -8/Materials | Evolved 2 slots: Utility x2 1499 | -8/Materials | Repaired Lgt. Nuclear Core 1537 | -8/Materials | Repaired Com. Wheel 1569 | -8/Materials | Repaired Mni. Grenade Launcher 1881 | -8/Materials | Core integrity fell below 50% 2469 | -8/Materials | Identified exit to Factory 2469 | -8/Materials | Discovered exit to Factory (range 10) 2507 | -8/Materials | Identified exit to Garrison 2523 | -8/Materials | Entered Factory 2523 | -7/Factory | Evolved 2 slots: Utility x1, Weapon x1 2657 | -7/Factory | Identified exit to DSF 2662 | -7/Factory | Entered DSF 2705 | -7/DSF | Additional patrols routed to DSF 2740 | -7/DSF | Identified exit to Garrison 2740 | -7/DSF | Discovered exit to Garrison (range 15) 2769 | -7/DSF | Entered Garrison 2820 | -7/Garrison | Triggered checkpoint 2892 | -7/Garrison | Triggered checkpoint 2949 | -7/Garrison | Lost 5 parts (1p2n2w) 2950 | -7/Garrison | Destroyed 8 combat bots 2994 | -7/Garrison | Garrison Relay disabled 3112 | -7/Garrison | Triggered checkpoint 3167 | -7/Garrison | Lost 6 parts (2p3n1w) 3244 | -7/Garrison | Triggered checkpoint 3284 | -7/Garrison | Core integrity fell below 50% 3323 | -7/Garrison | Destroyed 7 combat bots 3331 | -7/Garrison | Lost 14 parts (3p2n5u4w) 3507 | -7/Garrison | Identified exit to Factory 3507 | -7/Garrison | Discovered exit to Factory (range 14) 3616 | -7/Garrison | Attempted to access garrison exit controls, blocked by remote lockdown 3660 | -7/Garrison | Build established: Scavenger-Tank 3762 | -7/Garrison | Spotted B-75 Beast 3980 | -7/Garrison | Triggered checkpoint 4004 | -7/Garrison | Discovered exit to Factory (range 13) 4019 | -7/Garrison | Entered Factory 4019 | -6/Factory | Evolved 2 slots: Power x1, Propulsion x1 4086 | -6/Factory | Identified exit to Factory 4086 | -6/Factory | Discovered exit to Factory (range 6) 4113 | -6/Factory | Identified exit to Lower Caves 4113 | -6/Factory | Discovered exit to Lower Caves (range 14) 4833 | -6/Factory | Fabricated Hvy. Gauss Cannon (x2) 4981 | -6/Factory | Build established: Hacker-Tank 5016 | -6/Factory | Repaired Lgt. Treads 5042 | -6/Factory | Repaired Lgt. Treads? 5188 | -6/Factory | Entered Lower Caves 5195 | -6/Lower Caves | Met a Warlord Commander 5196 | -6/Lower Caves | Learned location of Warlord (-4) 5197 | -6/Lower Caves | Warlord Commander delivered Encrypted Comm Array 5204 | -6/Lower Caves | Found Encrypted Comm Array 5333 | -6/Lower Caves | Learned location of 1 exit from Factory 5710 | -6/Lower Caves | Identified exit to Lower Caves 5710 | -6/Lower Caves | Discovered exit to Lower Caves (range 5) 6327 | -6/Lower Caves | Entered another Lower Caves area 6663 | -6/Lower Caves | Encountered a Warlord checkpoint 7144 | -6/Lower Caves | Discovered exit to Factory (range 12) 7216 | -6/Lower Caves | Entered Factory 7216 | -5/Factory | Evolved 2 slots: Utility x1, Weapon x1 7217 | -5/Factory | Identified exit to Upper Caves 7660 | -5/Factory | Spotted B-75 Beast 7674 | -5/Factory | Destroyed B-75 Beast 8058 | -5/Factory | Self-destructed Last Messages --------------- R-10 Processor collects Wheel. P-70 Sage destroyed. U-05 Engineer builds a Wall. R-10 Processor collects Wheel. Gravmag System destroyed. U-05 Engineer lays Concrete. R-10 Processor collects Lgt. Ion Engine. U-05 Engineer lays Concrete. Acquired 6 matter. System corrupted: Heat flow error (+124). Dropped Broken Hvy. Gauss Cannon. Acquired Mic. Fission Core. U-05 Engineer destroyed. Gravmag System destroyed. Adv. Shield Generator destroyed. U-05 Engineer builds a Door. Particle Gun destroyed. Imp. Heat Sink destroyed. [Achievement: 5k Club] [Achievement: 10k Club] Map ----- +----------------------------------------------------+ | ?????# """""" #??????????????????????????????? | | ?????# #??????????????????????????????? | | ############+##########??????????????????????????? | | #??????????????????????????? | | #?????????????????????????## | | #???????????????????????? + | | #?????????????????????????# | | #?????????????????????????# | | ########## ####+########+???????????????????#% | | ?????????# # ! ??????????????????# | | ???????# # % ""????????????#########+ | | ???### +%% % ""???????????# | | + # ""???????????# """ """ | | ### # %%""" ????????????""" """ | | #?# #% ""T""" ?????????# """ """ | | #?# ############"###????????# | | #?# #########T ####?????????# """ """ | | #?# #?????????# """ """ | | #?# #?????????# """ """ | | #?# #?????????# | | ??# #?????????# | | #####????# #?????????# | | ?????????#####+###+##### #?????????# | | ?????????# # #################+### | | ?????????# # | | ?????????# # @ ! p | | ?????????# + =%! g | | ?????????# #] = g | | ?????????# # !![ p | | ?????????############ ########;#+################ | | ?????????????## # # | | ?????????????#" # # | | ?????????????#" # # | | ?????????????#" # # | | ?????????????#" # # == | | ?????????????#" # # == | | ?????????????## # # == | | ??????????????# # != # | | ??????????????# " # =[ # | | ??????????????# """ # =[ ######## | | ??????????????# # #??????? | | ??????????????#####/#/#####################??????? | | ??????????????????# #?????????????????? | | ??????????????????# #?????????######### | | ??????????????????# #?????????# | | ??????????????????# #?????????# | | ??????????????????# #?????????+ | | ??????????????????######## #?????????# """ | | ?????????????????????????# #?????????# """ | | ?????????????????????????# #?????????# """" | +----------------------------------------------------+ Best States ------------- Heat Dissipation 73 Coolant Potential 130 Energy Generation 54 Energy Capacity 630 Matter Stores 400 Matter Capacity 400 Sight Range 16 Robot Scan Range 14 Terrain Scan Density 10 Jamming Range 14 Additional Mass Support 9 Armor Coverage 600 Resistance: KI 35 Resistance: TH 35 Resistance: EX 35 Resistance: EM 35 Resistance: I 35 Resistance: S 35 Resistance: P 35 Core Shielding 20 Propulsion Shielding 66 Utility Shielding 66 Evasion (%) 57 Targeting Accuracy 5 Recoil Reduction 4 Offensive Hacking 20 Item Schematics ----------------- Sensor Array | -8/Materials | Scanalyzed Robot Schematics ------------------ None Fabricated ------------ Hvy. Gauss Cannon | x2 | -6/Factory | Preloaded Alien Tech Used ----------------- None Achievements -------------- 10k Club 5k Club Everything Is Under Control GoHome() It's Just You Just What I Needed Loot Pinata Made in Tau Ceti IV Oops Please Form A Line Power Corrupts Remodeling Risk Taker Serviceable Loadout Shopping List Storm Trooper Total Silence Uninvited Guest Universal Adapter Challenges ------------ None Game ------ Seed ActuatorStructuralBooster Manual? 0 Play Time 01:33:34 Cumulative 1.7 hours Start 2024.04.10 @ 13:25:07 End 2024.04.10 @ 14:58:11 Sessions 1 Manual Loads 0 Difficulty Explorer Special Mode None Game No. 1 Rogue 0 Adventurer 0 Explorer 1 Win Type - Total 0 Types 0/0/0/0/0/0/0/0/0 Lore% 0 Gallery% 7 Achievement% 9 Wizard Run 0 Options --------- Layout 1 ASCII 0 Keyboard 0 Movement Mouse Keybinds 0 Fullscreen 1 Font 24/Smallcaps Map View 50x35 Zoom Use 0% Tactical HUD 0 Map Filters NONE Filters NONE Steam 1 RUN: 02cace66-5efc-49e0-a453-283050e68dc8